OrganisationNameLabel,OrganisationURI,EffectiveDate,Directorate/ServiceWhereExpenditureIncurred,ServiceCategoryLabel,ServiceCategoryURI,Supplier,SupplierRegisteredCompany Number,PaymentDate,TransactionNumber,NetAmount,IrrecoverableVAT,PurposeOfSpend,ProcurementClassification:ProclassLabel,ProcrementClassification:ProClassCode
South Lakeland District Council,http://opendatacommunities.org/id/district-council/south-lakeland,31/05/2022,Kendal Town Hall,Cultural Environmental Regulatory & Planning Services,http://opendatacommunities.org/def/concept/finance/sercop/objective/104,THOMAS GRAHAM & SONS LTD,00656879,09-05-2022,0000180299,253.87,0,6 boxes of extra large niitrile blue,101400,Building General Materials
South Lakeland District Council,http://opendatacommunities.org/id/district-council/south-lakeland,31/05/2022,Support Services,Central Services,http://opendatacommunities.org/def/concept/finance/sercop/objective/102,P & W CONFIDENTIAL BUSINESS SERVICES LTD,,18-05-2022,0000180667,256.5,0,Confidential waste collection and,182014,Environment Waste Mgt Waste Colln for Re
South Lakeland District Council,http://opendatacommunities.org/id/district-council/south-lakeland,31/05/2022,Business Support Community Services,Cultural Environmental Regulatory & Planning Services,http://opendatacommunities.org/def/concept/finance/sercop/objective/104,TEAL PATENTS LTD,03212208,09-05-2022,0000180367,259.2,0,Parts,111100,Catering Equipment & Utensils
South Lakeland District Council,http://opendatacommunities.org/id/district-council/south-lakeland,31/05/2022,Westmorland Centre Parking Office,Cultural Environmental Regulatory & Planning Services,http://opendatacommunities.org/def/concept/finance/sercop/objective/104,Thomas Graham & Sons Ltd (Cleaning Supp),,11-05-2022,0000180301,260.68,0,X1 HB075-B PROFESSIONAL MOP BUCKET BLUE,131010,Cleaning & Janitorial Cleaning Materials
South Lakeland District Council,http://opendatacommunities.org/id/district-council/south-lakeland,31/05/2022,Case Management Regulatory,SLDC as Agent,,CUMBRIA COUNTY COUNCIL,,04-05-2022,0000179387,270,0,DBS Checks for Taxi Drivers,908000,Public Bodies Council support services
South Lakeland District Council,http://opendatacommunities.org/id/district-council/south-lakeland,31/05/2022,Business Support Community Services,Cultural Environmental Regulatory & Planning Services,http://opendatacommunities.org/def/concept/finance/sercop/objective/104,DENNIS EAGLE LTD,03794455,16-05-2022,0000180492,272.26,0,Parts,381300,Vehicle Mgt Industrial
South Lakeland District Council,http://opendatacommunities.org/id/district-council/south-lakeland,31/05/2022,Business Support Community Services,Cultural Environmental Regulatory & Planning Services,http://opendatacommunities.org/def/concept/finance/sercop/objective/104,HYDRAIR TRUCK & TRAILER PARTS LTD,,18-05-2022,0000180650,275.24,0,Parts,381500,Vehicle Mgt Parts
South Lakeland District Council,http://opendatacommunities.org/id/district-council/south-lakeland,31/05/2022,Business Support Community Services,Cultural Environmental Regulatory & Planning Services,http://opendatacommunities.org/def/concept/finance/sercop/objective/104,HYDRAIR TRUCK & TRAILER PARTS LTD,,16-05-2022,0000180422,281.28,0,Parts,381500,Vehicle Mgt Parts
South Lakeland District Council,http://opendatacommunities.org/id/district-council/south-lakeland,31/05/2022,Delivery Commercial Services,External Trading Accounts,,Ulverston Properties Limited,,09-05-2022,0000180342,281.67,0,Rental fee's for room 106 Ulverston,190000,Facilities & Management Services
South Lakeland District Council,http://opendatacommunities.org/id/district-council/south-lakeland,31/05/2022,Financial Services,Non-Service Payments,,Bravo Benefits Ltd,06758298,11-05-2022,0000180446,285,0,child care vouchers,202100,Financial Services Subscriptions
South Lakeland District Council,http://opendatacommunities.org/id/district-council/south-lakeland,31/05/2022,Business Support Community Services,Cultural Environmental Regulatory & Planning Services,http://opendatacommunities.org/def/concept/finance/sercop/objective/104,Harry Park Tyres Ltd,08131208,23-05-2022,0000180802,285,0,Tyres,381500,Vehicle Mgt Parts
South Lakeland District Council,http://opendatacommunities.org/id/district-council/south-lakeland,31/05/2022,Business Support Community Services,Cultural Environmental Regulatory & Planning Services,http://opendatacommunities.org/def/concept/finance/sercop/objective/104,COMPASS COMPONENTS,,23-05-2022,0000180633,285.01,0,Consumables,101400,Building General Materials
South Lakeland District Council,http://opendatacommunities.org/id/district-council/south-lakeland,31/05/2022,Business Support Community Services,Cultural Environmental Regulatory & Planning Services,http://opendatacommunities.org/def/concept/finance/sercop/objective/104,INNOVATIVE SAFETY SYSTEMS LTD,06875015,23-05-2022,0000180831,286,0,Parts,192200,Facilities Security
South Lakeland District Council,http://opendatacommunities.org/id/district-council/south-lakeland,31/05/2022,Delivery Commercial Services,Central Services,http://opendatacommunities.org/def/concept/finance/sercop/objective/102,CUMBRIA WASTE RECYCLING LTD,03162439,25-05-2022,0000180880,292.92,0,South Lakeland House 1100Ltr wheeled,182012,Environment Waste Management Recycling
South Lakeland District Council,http://opendatacommunities.org/id/district-council/south-lakeland,31/05/2022,ICT Group,Central Services,http://opendatacommunities.org/def/concept/finance/sercop/objective/102,PROBRAND LTD,02653446,04-05-2022,0000180256,302.4,0,10 x Power cable - 3-pole (M) to IEC,271600,ICT Software Customised & Bespoke
South Lakeland District Council,http://opendatacommunities.org/id/district-council/south-lakeland,31/05/2022,Support Services,Central Services,http://opendatacommunities.org/def/concept/finance/sercop/objective/102,THOMSON REUTERS (PROFESSIONAL) UK LTD,01679046,04-05-2022,0000180261,314,0,Schofields Election Law 63,202100,Financial Services Subscriptions
South Lakeland District Council,http://opendatacommunities.org/id/district-council/south-lakeland,31/05/2022,Case Management Regulatory,Central Services,http://opendatacommunities.org/def/concept/finance/sercop/objective/102,YORKSHIRE DALES NATIONAL PARK AUTHY,,18-05-2022,0000180471,325.6,0,LAND CHARGE SEARCH ENQUIRIES YDNP,202100,Financial Services Subscriptions
South Lakeland District Council,http://opendatacommunities.org/id/district-council/south-lakeland,31/05/2022,Case Management People,Housing Services,http://opendatacommunities.org/def/concept/finance/sercop/objective/108,ADECCO UK LIMITED,00593232,25-05-2022,0000180622,326.42,0,Administrator role,261400,HR Temporary & Agency Staff
South Lakeland District Council,http://opendatacommunities.org/id/district-council/south-lakeland,31/05/2022,Case Management People,Housing Services,http://opendatacommunities.org/def/concept/finance/sercop/objective/108,Ashberry Recruitment,07202591,04-05-2022,0000180210,327.11,0,Agency staff at TVF,261300,HR Recruitment & Assessment
South Lakeland District Council,http://opendatacommunities.org/id/district-council/south-lakeland,31/05/2022,Case Management Regulatory,Central Services,http://opendatacommunities.org/def/concept/finance/sercop/objective/102,Macdonald & Company Freelance Ltd,03882135,04-05-2022,0000180253,332.5,0,Contract Worker,261400,HR Temporary & Agency Staff
South Lakeland District Council,http://opendatacommunities.org/id/district-council/south-lakeland,31/05/2022,Assets and Commercial Services,Central Services,http://opendatacommunities.org/def/concept/finance/sercop/objective/102,ADECCO UK LIMITED,00593232,04-05-2022,0000180252,336.84,0,Po to cover wages -ferry,261400,HR Temporary & Agency Staff
South Lakeland District Council,http://opendatacommunities.org/id/district-council/south-lakeland,31/05/2022,Assets and Commercial Services,Central Services,http://opendatacommunities.org/def/concept/finance/sercop/objective/102,ADECCO UK LIMITED,00593232,16-05-2022,0000180463,336.84,0,Po to cover wages of -ferry,261400,HR Temporary & Agency Staff
South Lakeland District Council,http://opendatacommunities.org/id/district-council/south-lakeland,31/05/2022,Assets and Commercial Services,Central Services,http://opendatacommunities.org/def/concept/finance/sercop/objective/102,ADECCO UK LIMITED,00593232,30-05-2022,0000180624,336.84,0,Po to cover wages of -ferry,261400,HR Temporary & Agency Staff
South Lakeland District Council,http://opendatacommunities.org/id/district-council/south-lakeland,31/05/2022,Support Services,Central Services,http://opendatacommunities.org/def/concept/finance/sercop/objective/102,Print.UK.Com,,30-05-2022,0000180865,348.54,0,Printing and postage costs (ballot,191600,Facilities Printing
South Lakeland District Council,http://opendatacommunities.org/id/district-council/south-lakeland,31/05/2022,Delivery Commercial Services,Central Services,http://opendatacommunities.org/def/concept/finance/sercop/objective/102,Thomas Graham & Sons Ltd (Cleaning Supp),,11-05-2022,0000180297,364.17,0,99CS016 X1L JANGRO BULKFILL SOAP,131010,Cleaning & Janitorial Cleaning Materials
South Lakeland District Council,http://opendatacommunities.org/id/district-council/south-lakeland,31/05/2022,Support Services,Central Services,http://opendatacommunities.org/def/concept/finance/sercop/objective/102,St John's Chambers,,30-05-2022,0000180934,375,0,Section 157 Housing Act 1985,281200,Legal Services General Support
South Lakeland District Council,http://opendatacommunities.org/id/district-council/south-lakeland,31/05/2022,Support Services,Central Services,http://opendatacommunities.org/def/concept/finance/sercop/objective/102,JAMES BUTTON & CO,,30-05-2022,0000180908,382.5,0,JB&Co subscription 1 April 2022 to 31,281300,Legal Services Legal Opinion
South Lakeland District Council,http://opendatacommunities.org/id/district-council/south-lakeland,31/05/2022,Support Services,Central Services,http://opendatacommunities.org/def/concept/finance/sercop/objective/102,JAMES BUTTON & CO,,30-05-2022,0000180908,382.5,0,JB&Co subscription 1 April 2022 to 31,281300,Legal Services Legal Opinion
South Lakeland District Council,http://opendatacommunities.org/id/district-council/south-lakeland,31/05/2022,Westmorland Centre Parking Office,Cultural Environmental Regulatory & Planning Services,http://opendatacommunities.org/def/concept/finance/sercop/objective/104,Rolec Services Ltd,02294468,16-05-2022,0000180522,386,0,200 x ACEU017 Blank Reusable Smartcard,192210,Facilities Security Access Control
South Lakeland District Council,http://opendatacommunities.org/id/district-council/south-lakeland,31/05/2022,Support Services,Central Services,http://opendatacommunities.org/def/concept/finance/sercop/objective/102,Print.UK.Com,,18-05-2022,0000180607,390,0,Printing and postage costs (ballot,191600,Facilities Printing
South Lakeland District Council,http://opendatacommunities.org/id/district-council/south-lakeland,31/05/2022,Case Management Regulatory,Cultural Environmental Regulatory & Planning Services,http://opendatacommunities.org/def/concept/finance/sercop/objective/104,NEWSQUEST MEDIA GROUP LTD,03102566,25-05-2022,0000180269,394.88,0,Public notices for planning applications,191000,Facilities Advertising
South Lakeland District Council,http://opendatacommunities.org/id/district-council/south-lakeland,31/05/2022,Case Management Account Mgmt,Central Services,http://opendatacommunities.org/def/concept/finance/sercop/objective/102,ALLPAY.NET LTD (NCR),6871069,01-05-2022,0000180547,395.98,0,2021-22 Internet Payment / bank charges,209999,Financial Services Not Elsewhere Classif
South Lakeland District Council,http://opendatacommunities.org/id/district-council/south-lakeland,31/05/2022,Case Management Account Mgmt,Housing Services,http://opendatacommunities.org/def/concept/finance/sercop/objective/108,Housing Reviews Limited,05008207,23-05-2022,0000180302,410,0,Training for staff.,250000,Housing
South Lakeland District Council,http://opendatacommunities.org/id/district-council/south-lakeland,31/05/2022,Human Resources,Cultural Environmental Regulatory & Planning Services,http://opendatacommunities.org/def/concept/finance/sercop/objective/104,Choose Occupational Health,07365943,16-05-2022,0000180312,412.5,0,OHP - ,191800,Facilities Public Relations & Image
South Lakeland District Council,http://opendatacommunities.org/id/district-council/south-lakeland,31/05/2022,Westmorland Centre Parking Office,Highways & Transport Services,http://opendatacommunities.org/def/concept/finance/sercop/objective/107,Orbility,,25-05-2022,0000180879,415,0,Call out to assess damaged Entry 2,111200,Catering Food & Beverages
South Lakeland District Council,http://opendatacommunities.org/id/district-council/south-lakeland,31/05/2022,Case Management People,Housing Services,http://opendatacommunities.org/def/concept/finance/sercop/objective/108,Landlord,,25-05-2022,0000180912,415,0,"Monthly Rent Flat 4D The Courtyard, 23",250010,Housing Letting Agents
South Lakeland District Council,http://opendatacommunities.org/id/district-council/south-lakeland,31/05/2022,Business Support Community Services,Cultural Environmental Regulatory & Planning Services,http://opendatacommunities.org/def/concept/finance/sercop/objective/104,REEN Technologies Limited,9347391,16-05-2022,0000180452,416,0,Subscriptions 22/23,261517,ICT-Consultancy
South Lakeland District Council,http://opendatacommunities.org/id/district-council/south-lakeland,31/05/2022,ICT Group,Central Services,http://opendatacommunities.org/def/concept/finance/sercop/objective/102,IT PROFESSIONAL SERVICES (ITPS),,09-05-2022,0000180362,420,0,ITPS FTTC 80M/20M Annually Rental,279999,ICT Not Elsewhere Classified
South Lakeland District Council,http://opendatacommunities.org/id/district-council/south-lakeland,31/05/2022,Business Support Community Services,Cultural Environmental Regulatory & Planning Services,http://opendatacommunities.org/def/concept/finance/sercop/objective/104,FAUN ZOELLER (UK) LTD,00751804,30-05-2022,0000180894,421.07,0,Parts,381400,Vehicle Mgt Maintenance
South Lakeland District Council,http://opendatacommunities.org/id/district-council/south-lakeland,31/05/2022,Business Support Community Services,Cultural Environmental Regulatory & Planning Services,http://opendatacommunities.org/def/concept/finance/sercop/objective/104,Slicker Recycling Ltd,08652156,09-05-2022,0000180398,424,0,Filter recycling,182015,Environment Waste Mgt Waste Disposal
South Lakeland District Council,http://opendatacommunities.org/id/district-council/south-lakeland,31/05/2022,Case Management People,Housing Services,http://opendatacommunities.org/def/concept/finance/sercop/objective/108,ADECCO UK LIMITED,00593232,09-05-2022,0000180251,427.57,0,Administrator role,261400,HR Temporary & Agency Staff
South Lakeland District Council,http://opendatacommunities.org/id/district-council/south-lakeland,31/05/2022,Case Management Account Mgmt,Cultural Environmental Regulatory & Planning Services,http://opendatacommunities.org/def/concept/finance/sercop/objective/104,CUMBRIA COUNTY COUNCIL,,04-05-2022,0000180128,431,0,TTRO for road closure at High,908000,Public Bodies Council support services
South Lakeland District Council,http://opendatacommunities.org/id/district-council/south-lakeland,31/05/2022,Case Management People,Housing Services,http://opendatacommunities.org/def/concept/finance/sercop/objective/108,SOUTH LAKES HOUSING RENT A/C,,11-05-2022,0000180449,431.9,0,Rent in advance 21 Castle Walk,191700,Facilities Property Management
South Lakeland District Council,http://opendatacommunities.org/id/district-council/south-lakeland,31/05/2022,Case Management People,Housing Services,http://opendatacommunities.org/def/concept/finance/sercop/objective/108,ADECCO UK LIMITED,00593232,16-05-2022,0000180465,432.17,0,Administrator role,261400,HR Temporary & Agency Staff
South Lakeland District Council,http://opendatacommunities.org/id/district-council/south-lakeland,31/05/2022,ICT Group,Central Services,http://opendatacommunities.org/def/concept/finance/sercop/objective/102,IT PROFESSIONAL SERVICES (ITPS),,09-05-2022,0000180358,444,0,ITPS FTTC 80M/20M Annual Rental,279999,ICT Not Elsewhere Classified
South Lakeland District Council,http://opendatacommunities.org/id/district-council/south-lakeland,31/05/2022,Lake Wardens,Cultural Environmental Regulatory & Planning Services,http://opendatacommunities.org/def/concept/finance/sercop/objective/104,CUMBRIA WASTE RECYCLING LTD,03162439,25-05-2022,0000179797,444.51,0,Emptying of Refuse Wheelie Bins,182012,Environment Waste Management Recycling
South Lakeland District Council,http://opendatacommunities.org/id/district-council/south-lakeland,31/05/2022,Support Services,Environment Regulatory,,Browne Jacobson LLP,OC306448,23-05-2022,0000180665,455.5,0,Gooseholme grant agreement,281200,Legal Services General Support
South Lakeland District Council,http://opendatacommunities.org/id/district-council/south-lakeland,31/05/2022,Case Management People,Housing Services,http://opendatacommunities.org/def/concept/finance/sercop/objective/108,HOME GROUP RENT A/C,,16-05-2022,0000180600,463.84,0,Rent in advance 10 Crag View,250000,Housing
South Lakeland District Council,http://opendatacommunities.org/id/district-council/south-lakeland,31/05/2022,Westmorland Centre Parking Office,Highways & Transport Services,http://opendatacommunities.org/def/concept/finance/sercop/objective/107,Security Plus   Limited,,23-05-2022,0000180691,467.5,0,Bulk cash collection April 2022-March,209999,Financial Services Not Elsewhere Classif
South Lakeland District Council,http://opendatacommunities.org/id/district-council/south-lakeland,31/05/2022,Business Support Community Services,Cultural Environmental Regulatory & Planning Services,http://opendatacommunities.org/def/concept/finance/sercop/objective/104,ARCO LIMITED,00133804,16-05-2022,0000180535,474.48,0,Cleaning materials 2022/23,141100,Clothing Protective
South Lakeland District Council,http://opendatacommunities.org/id/district-council/south-lakeland,31/05/2022,Delivery Commercial Services,Central Services,http://opendatacommunities.org/def/concept/finance/sercop/objective/102,DAISY COMMUNICATIONS LTD,04145329,16-05-2022,0000180530,486.46,0,Daisy Line rental 1.4.22 - 31.3.23,271700,ICT Telecommunications Fixed
South Lakeland District Council,http://opendatacommunities.org/id/district-council/south-lakeland,31/05/2022,Case Management Account Mgmt,Central Services,http://opendatacommunities.org/def/concept/finance/sercop/objective/102,CFH Docmail Ltd,01716891,16-05-2022,0000180432,487.12,0,Revs & Bens daily Printing,300000,Mail Services
South Lakeland District Council,http://opendatacommunities.org/id/district-council/south-lakeland,31/05/2022,Business Support Community Services,Cultural Environmental Regulatory & Planning Services,http://opendatacommunities.org/def/concept/finance/sercop/objective/104,ELIS UK LTD,00228604,09-05-2022,0000180314,495.51,0,Workwear hire 01/04/22 - 31/03/23,161000,Domestic Goods Commercial
South Lakeland District Council,http://opendatacommunities.org/id/district-council/south-lakeland,31/05/2022,Delivery Commercial Services,Central Services,http://opendatacommunities.org/def/concept/finance/sercop/objective/102,Kinto Uk Limited,00837940,04-05-2022,0000180240,501.77,0,Hire 2 x vans maintenance 2022-23,381000,Vehicle Mgt Commercial
South Lakeland District Council,http://opendatacommunities.org/id/district-council/south-lakeland,31/05/2022,Delivery Commercial Services,Central Services,http://opendatacommunities.org/def/concept/finance/sercop/objective/102,Kinto Uk Limited,00837940,04-05-2022,0000180241,501.77,0,Hire 2 x vans maintenance 2022-23,381000,Vehicle Mgt Commercial
South Lakeland District Council,http://opendatacommunities.org/id/district-council/south-lakeland,31/05/2022,ICT Group,Central Services,http://opendatacommunities.org/def/concept/finance/sercop/objective/102,IT PROFESSIONAL SERVICES (ITPS),,09-05-2022,0000180361,504,0,ITPS FTTC 80M/20M Annual Rental,279999,ICT Not Elsewhere Classified
South Lakeland District Council,http://opendatacommunities.org/id/district-council/south-lakeland,31/05/2022,Support Services,Housing,http://opendatacommunities.org/def/concept/finance/sercop/objective/108,Browne Jacobson LLP,OC306448,09-05-2022,0000180311,504.46,0,legal fees in connection with proposed,281200,Legal Services General Support
South Lakeland District Council,http://opendatacommunities.org/id/district-council/south-lakeland,31/05/2022,Support Services,Central Services,http://opendatacommunities.org/def/concept/finance/sercop/objective/102,CFH Docmail Ltd,01716891,11-05-2022,0000180288,513.63,0,"Ad hoc printing throughout the year,",300000,Mail Services
South Lakeland District Council,http://opendatacommunities.org/id/district-council/south-lakeland,31/05/2022,Business Support Community Services,Cultural Environmental Regulatory & Planning Services,http://opendatacommunities.org/def/concept/finance/sercop/objective/104,INNOVATIVE SAFETY SYSTEMS LTD,06875015,16-05-2022,0000180497,516,0,Parts,192200,Facilities Security
South Lakeland District Council,http://opendatacommunities.org/id/district-council/south-lakeland,31/05/2022,Case Management Account Mgmt,Central Services,http://opendatacommunities.org/def/concept/finance/sercop/objective/102,CFH Docmail Ltd,01716891,09-05-2022,0000180284,516.6,0,February 2022 Postage charges/ Invoice,300000,Mail Services
South Lakeland District Council,http://opendatacommunities.org/id/district-council/south-lakeland,31/05/2022,ICT Group,Central Services,http://opendatacommunities.org/def/concept/finance/sercop/objective/102,EE UK LTD (NCR),,01-05-2022,0000180925,519.8,0,EE LTD Canvas SIMs and Wifi for tablets,351000,Street & Traffic Parking Car Parks
South Lakeland District Council,http://opendatacommunities.org/id/district-council/south-lakeland,31/05/2022,Case Management People,Housing Services,http://opendatacommunities.org/def/concept/finance/sercop/objective/108,Landlord,,25-05-2022,0000180911,536.98,0,"Monthly Rent Flat 3, 13 New Road",250000,Housing
South Lakeland District Council,http://opendatacommunities.org/id/district-council/south-lakeland,31/05/2022,Business Support Community Services,Cultural Environmental Regulatory & Planning Services,http://opendatacommunities.org/def/concept/finance/sercop/objective/104,LANCASHIRE DAF,,16-05-2022,0000180428,539.74,0,Parts,381400,Vehicle Mgt Maintenance
South Lakeland District Council,http://opendatacommunities.org/id/district-council/south-lakeland,31/05/2022,ICT Group,Central Services,http://opendatacommunities.org/def/concept/finance/sercop/objective/102,Insight Direct (Uk) Ltd,2579852,09-05-2022,0000172405,543.4,0,SM-T505NZAAEUA Samsung Galaxy Tab A7 -,271200,ICT Hardware
South Lakeland District Council,http://opendatacommunities.org/id/district-council/south-lakeland,31/05/2022,ICT Group,Central Services,http://opendatacommunities.org/def/concept/finance/sercop/objective/102,PROBRAND LTD,02653446,25-05-2022,0000180237,545.65,0,10 x Power cable - 3-pole (M) to IEC,271600,ICT Software Customised & Bespoke
South Lakeland District Council,http://opendatacommunities.org/id/district-council/south-lakeland,31/05/2022,Case Management Regulatory,Central Services,http://opendatacommunities.org/def/concept/finance/sercop/objective/102,CUMBRIA COUNTY COUNCIL,,11-05-2022,0000180359,546,0,LOCAL LAND CHARGE SEARCH ENQUIRIES,908000,Public Bodies Council support services
South Lakeland District Council,http://opendatacommunities.org/id/district-council/south-lakeland,31/05/2022,Case Management People,Housing Services,http://opendatacommunities.org/def/concept/finance/sercop/objective/108,Alan Wilson,,30-05-2022,0000180968,550,0,Rent arrears payment,250000,Housing
South Lakeland District Council,http://opendatacommunities.org/id/district-council/south-lakeland,31/05/2022,Support Services,Central Services,http://opendatacommunities.org/def/concept/finance/sercop/objective/102,Lawyers in Local Government (Membership),08379439,09-05-2022,0000180319,555,0,LLG Membership Renewal for 6-10 people,202100,Financial Services Subscriptions
South Lakeland District Council,http://opendatacommunities.org/id/district-council/south-lakeland,31/05/2022,Westmorland Centre Parking Office,Highways & Transport Services,http://opendatacommunities.org/def/concept/finance/sercop/objective/107,METRIC GROUP LIMITED,02560839,16-05-2022,0000180292,559.45,0,Estimate cost of repairs to damaged,359999,Street & Traffic Not Elsewhere Classifie
South Lakeland District Council,http://opendatacommunities.org/id/district-council/south-lakeland,31/05/2022,Case Management People,Housing Services,http://opendatacommunities.org/def/concept/finance/sercop/objective/108,1st Choice Flooring,,09-05-2022,0000180290,560,0,Carpet Fitting 10 Sparrowmire Lane,250000,Housing
South Lakeland District Council,http://opendatacommunities.org/id/district-council/south-lakeland,31/05/2022,Support Services,SLDC as Agent,,Arthur J Gallagher Insurance Brokers Lld,00108909,09-05-2022,0000180291,560,0,Brokerage and other insurance policies,201800,Financial Services Insurance
South Lakeland District Council,http://opendatacommunities.org/id/district-council/south-lakeland,31/05/2022,ICT Group,Central Services,http://opendatacommunities.org/def/concept/finance/sercop/objective/102,IT PROFESSIONAL SERVICES (ITPS),,09-05-2022,0000180362,564,0,ITPS FTTC 80M/20M Annually Rental,279999,ICT Not Elsewhere Classified
South Lakeland District Council,http://opendatacommunities.org/id/district-council/south-lakeland,31/05/2022,Business Support Community Services,Cultural Environmental Regulatory & Planning Services,http://opendatacommunities.org/def/concept/finance/sercop/objective/104,ETS UK LIMITED,02588203,23-05-2022,0000180800,565,0,Parts,381500,Vehicle Mgt Parts
South Lakeland District Council,http://opendatacommunities.org/id/district-council/south-lakeland,31/05/2022,Business Support Community Services,Cultural Environmental Regulatory & Planning Services,http://opendatacommunities.org/def/concept/finance/sercop/objective/104,Harry Park Tyres Ltd,08131208,16-05-2022,0000180511,580,0,Tyres,381500,Vehicle Mgt Parts
South Lakeland District Council,http://opendatacommunities.org/id/district-council/south-lakeland,31/05/2022,Business Support Community Services,Cultural Environmental Regulatory & Planning Services,http://opendatacommunities.org/def/concept/finance/sercop/objective/104,FAUN ZOELLER (UK) LTD,00751804,11-05-2022,0000180305,581.26,0,Parts,381400,Vehicle Mgt Maintenance
South Lakeland District Council,http://opendatacommunities.org/id/district-council/south-lakeland,31/05/2022,Business Support Community Services,Cultural Environmental Regulatory & Planning Services,http://opendatacommunities.org/def/concept/finance/sercop/objective/104,ADECCO UK LIMITED,00593232,30-05-2022,0000180890,581.44,0,Agency staff,261400,HR Temporary & Agency Staff
South Lakeland District Council,http://opendatacommunities.org/id/district-council/south-lakeland,31/05/2022,Support Services,Central Services,http://opendatacommunities.org/def/concept/finance/sercop/objective/102,Envoprint,,09-05-2022,0000180262,582,0,Suction feet for polling station,221000,Health & Safety� Products
South Lakeland District Council,http://opendatacommunities.org/id/district-council/south-lakeland,31/05/2022,Business Support Community Services,Cultural Environmental Regulatory & Planning Services,http://opendatacommunities.org/def/concept/finance/sercop/objective/104,Harry Park Tyres Ltd,08131208,16-05-2022,0000180420,590,0,Tyres,381500,Vehicle Mgt Parts
South Lakeland District Council,http://opendatacommunities.org/id/district-council/south-lakeland,31/05/2022,Support Services,Culture and Related Serv,http://opendatacommunities.org/def/concept/finance/sercop/objective/104,Browne Jacobson LLP,OC306448,09-05-2022,0000180322,596.5,0,Abbot Hall CLEP CONT0707,281200,Legal Services General Support
South Lakeland District Council,http://opendatacommunities.org/id/district-council/south-lakeland,31/05/2022,Business Support Community Services,Cultural Environmental Regulatory & Planning Services,http://opendatacommunities.org/def/concept/finance/sercop/objective/104,FAUN ZOELLER (UK) LTD,00751804,16-05-2022,0000180493,602.68,0,Parts,381400,Vehicle Mgt Maintenance
South Lakeland District Council,http://opendatacommunities.org/id/district-council/south-lakeland,31/05/2022,Human Resources,Central Services,http://opendatacommunities.org/def/concept/finance/sercop/objective/102,ADECCO UK LIMITED,00593232,18-05-2022,0000180467,609.81,0,M,261400,HR Temporary & Agency Staff
South Lakeland District Council,http://opendatacommunities.org/id/district-council/south-lakeland,31/05/2022,Business Support Community Services,Cultural Environmental Regulatory & Planning Services,http://opendatacommunities.org/def/concept/finance/sercop/objective/104,ARCO LIMITED,00133804,30-05-2022,0000180946,633.38,0,Cleaning materials 2022/23,141100,Clothing Protective
South Lakeland District Council,http://opendatacommunities.org/id/district-council/south-lakeland,31/05/2022,Case Management Account Mgmt,Central Services,http://opendatacommunities.org/def/concept/finance/sercop/objective/102,ALLPAY.NET LTD (NCR),6871069,01-05-2022,0000180901,672.56,0,2022-23 Internet payment/bank charges,209999,Financial Services Not Elsewhere Classif
South Lakeland District Council,http://opendatacommunities.org/id/district-council/south-lakeland,31/05/2022,Human Resources,Central Services,http://opendatacommunities.org/def/concept/finance/sercop/objective/102,ADECCO UK LIMITED,00593232,30-05-2022,0000180623,679.63,0,M,261400,HR Temporary & Agency Staff
South Lakeland District Council,http://opendatacommunities.org/id/district-council/south-lakeland,31/05/2022,Support Services,Central Services,http://opendatacommunities.org/def/concept/finance/sercop/objective/102,Print.UK.Com,,30-05-2022,0000180862,696,0,Printing and postage (ballot papers and,191600,Facilities Printing
South Lakeland District Council,http://opendatacommunities.org/id/district-council/south-lakeland,31/05/2022,Business Support Community Services,Cultural Environmental Regulatory & Planning Services,http://opendatacommunities.org/def/concept/finance/sercop/objective/104,ARCO LIMITED,00133804,16-05-2022,0000180539,702.29,0,Cleaning materials 2022/23,141100,Clothing Protective
South Lakeland District Council,http://opendatacommunities.org/id/district-council/south-lakeland,31/05/2022,Case Management Account Mgmt,Central Services,http://opendatacommunities.org/def/concept/finance/sercop/objective/102,CFH Docmail Ltd,01716891,11-05-2022,0000180285,705.2,0,Revs & Bens daily Printing,300000,Mail Services
South Lakeland District Council,http://opendatacommunities.org/id/district-council/south-lakeland,31/05/2022,Case Management Account Mgmt,SLDC as Agent,,Cactus Creative Ltd,04198363,30-05-2022,0000180902,720,0,Kendal maintenance package up to,191000,Facilities Advertising
South Lakeland District Council,http://opendatacommunities.org/id/district-council/south-lakeland,31/05/2022,Delivery Commercial Services,Central Services,http://opendatacommunities.org/def/concept/finance/sercop/objective/102,J S Cleaning Services,,23-05-2022,0000180586,735,0,Cleaning services at North Lonsdael Road,131010,Cleaning & Janitorial Cleaning Materials
South Lakeland District Council,http://opendatacommunities.org/id/district-council/south-lakeland,31/05/2022,Human Resources,Central Services,http://opendatacommunities.org/def/concept/finance/sercop/objective/102,ADECCO UK LIMITED,00593232,18-05-2022,0000180466,763.42,0,M,261400,HR Temporary & Agency Staff
South Lakeland District Council,http://opendatacommunities.org/id/district-council/south-lakeland,31/05/2022,Westmorland Centre Parking Office,Highways & Transport Services,http://opendatacommunities.org/def/concept/finance/sercop/objective/107,Orbility,,25-05-2022,0000180619,764.74,0,Magnetic hinge replacement (including,111200,Catering Food & Beverages
South Lakeland District Council,http://opendatacommunities.org/id/district-council/south-lakeland,31/05/2022,Business Support Community Services,Cultural Environmental Regulatory & Planning Services,http://opendatacommunities.org/def/concept/finance/sercop/objective/104,CUMBRIA WASTE RECYCLING LTD,03162439,23-05-2022,0000180786,765.67,0,Skip emptying 2022/23,182012,Environment Waste Management Recycling
South Lakeland District Council,http://opendatacommunities.org/id/district-council/south-lakeland,31/05/2022,Business Support Community Services,Cultural Environmental Regulatory & Planning Services,http://opendatacommunities.org/def/concept/finance/sercop/objective/104,TAYLOR ENGINEERING & FABRICATIONS LTD,04989359,16-05-2022,0000180456,765.92,0,Parts,391200,Construction Engineering
South Lakeland District Council,http://opendatacommunities.org/id/district-council/south-lakeland,31/05/2022,Case Management Account Mgmt,Central Services,http://opendatacommunities.org/def/concept/finance/sercop/objective/102,ROYAL MAIL GROUP PLC,,30-05-2022,0000180596,783.37,0,2022-23 Royal Mail Postal Charges a/c,301200,Mail Services� Postage
South Lakeland District Council,http://opendatacommunities.org/id/district-council/south-lakeland,31/05/2022,Business Support Community Services,Cultural Environmental Regulatory & Planning Services,http://opendatacommunities.org/def/concept/finance/sercop/objective/104,Gemco Service Limited,03514486,09-05-2022,0000180387,789,0,Service fees,381400,Vehicle Mgt Maintenance
South Lakeland District Council,http://opendatacommunities.org/id/district-council/south-lakeland,31/05/2022,ICT Group,Central Services,http://opendatacommunities.org/def/concept/finance/sercop/objective/102,IT PROFESSIONAL SERVICES (ITPS),,09-05-2022,0000180363,789.92,0,WLR3 Business Line Annual Rental,279999,ICT Not Elsewhere Classified
South Lakeland District Council,http://opendatacommunities.org/id/district-council/south-lakeland,31/05/2022,Assets and Commercial Services,Central Services,http://opendatacommunities.org/def/concept/finance/sercop/objective/102,Virtual College Ltd,,23-05-2022,0000180788,792,0,10 IOSH working safely licences from,261520,Human Resources Training
South Lakeland District Council,http://opendatacommunities.org/id/district-council/south-lakeland,31/05/2022,Human Resources,Central Services,http://opendatacommunities.org/def/concept/finance/sercop/objective/102,CHARTERED INST OF ENVIRONMNTL HLTH,,23-05-2022,0000180625,800,0,Specialist Level 2 (Housing Standards),202100,Financial Services Subscriptions
South Lakeland District Council,http://opendatacommunities.org/id/district-council/south-lakeland,31/05/2022,Business Support Community Services,Cultural Environmental Regulatory & Planning Services,http://opendatacommunities.org/def/concept/finance/sercop/objective/104,Terberg Matec (UK) Ltd,,09-05-2022,0000180386,805.61,0,Parts,381500,Vehicle Mgt Parts
South Lakeland District Council,http://opendatacommunities.org/id/district-council/south-lakeland,31/05/2022,Case Management People,Housing Services,http://opendatacommunities.org/def/concept/finance/sercop/objective/108,Landlord,,16-05-2022,0000180602,839.88,0,"Flats 1 and 2, 13 New Road, Monthly Rent",250000,Housing
South Lakeland District Council,http://opendatacommunities.org/id/district-council/south-lakeland,31/05/2022,Human Resources,Central Services,http://opendatacommunities.org/def/concept/finance/sercop/objective/102,Grad Consult,08653774,23-05-2022,0000180614,850,0,"16 Courses - Building Resilience,",261500,HR Training & Conferences
South Lakeland District Council,http://opendatacommunities.org/id/district-council/south-lakeland,31/05/2022,Human Resources,Central Services,http://opendatacommunities.org/def/concept/finance/sercop/objective/102,Grad Consult,08653774,25-05-2022,0000180859,850,0,"16 Courses - Building Resilience,",261500,HR Training & Conferences
South Lakeland District Council,http://opendatacommunities.org/id/district-council/south-lakeland,31/05/2022,Case Management Account Mgmt,Central Services,http://opendatacommunities.org/def/concept/finance/sercop/objective/102,CFH Docmail Ltd,01716891,11-05-2022,0000180286,886.1,0,Revs & Bens daily Printing,300000,Mail Services
South Lakeland District Council,http://opendatacommunities.org/id/district-council/south-lakeland,31/05/2022,Case Management Account Mgmt,Highways & Transport Services,http://opendatacommunities.org/def/concept/finance/sercop/objective/107,CAPITA BUSINESS SERVICES LTD (NCR),,01-05-2022,0000180876,891.53,0,2022/23 Internet payment/bank charges,261500,HR Training & Conferences
South Lakeland District Council,http://opendatacommunities.org/id/district-council/south-lakeland,31/05/2022,Case Management Account Mgmt,Central Services,http://opendatacommunities.org/def/concept/finance/sercop/objective/102,CFH Docmail Ltd,01716891,09-05-2022,0000180282,901.59,0,Production Charges Invoice,300000,Mail Services
South Lakeland District Council,http://opendatacommunities.org/id/district-council/south-lakeland,31/05/2022,Human Resources,Central Services,http://opendatacommunities.org/def/concept/finance/sercop/objective/102,Lakeland Mediation Solutions,,16-05-2022,0000180476,950,0,Mediation over a 2 day period,260000,HR
South Lakeland District Council,http://opendatacommunities.org/id/district-council/south-lakeland,31/05/2022,Case Management,Central Services,http://opendatacommunities.org/def/concept/finance/sercop/objective/102,Inform CPI Ltd,,25-05-2022,0000180618,950,0,Analyse Local RV finder,271600,ICT Software Customised & Bespoke
South Lakeland District Council,http://opendatacommunities.org/id/district-council/south-lakeland,31/05/2022,Business Support Community Services,Cultural Environmental Regulatory & Planning Services,http://opendatacommunities.org/def/concept/finance/sercop/objective/104,FLEET PARTS LTD,01252714,23-05-2022,0000180794,970,0,Training,381500,Vehicle Mgt Parts
South Lakeland District Council,http://opendatacommunities.org/id/district-council/south-lakeland,31/05/2022,Business Support Community Services,Cultural Environmental Regulatory & Planning Services,http://opendatacommunities.org/def/concept/finance/sercop/objective/104,LANCASHIRE DAF,,09-05-2022,0000180393,992,0,Parts,381400,Vehicle Mgt Maintenance
South Lakeland District Council,http://opendatacommunities.org/id/district-council/south-lakeland,31/05/2022,Case Management People,Housing Services,http://opendatacommunities.org/def/concept/finance/sercop/objective/108,James Andrews Recruitment Solutions,06834852,16-05-2022,0000180524,993,0,Payment for ,261400,HR Temporary & Agency Staff
South Lakeland District Council,http://opendatacommunities.org/id/district-council/south-lakeland,31/05/2022,Business Support Community Services,Cultural Environmental Regulatory & Planning Services,http://opendatacommunities.org/def/concept/finance/sercop/objective/104,Gemco Service Limited,03514486,09-05-2022,0000180399,995,0,Service fees,381400,Vehicle Mgt Maintenance
South Lakeland District Council,http://opendatacommunities.org/id/district-council/south-lakeland,31/05/2022,Case Management Account Mgmt,Cultural Environmental Regulatory & Planning Services,http://opendatacommunities.org/def/concept/finance/sercop/objective/104,CUMBRIA TOURISM,03027358,23-05-2022,0000180605,1000,0,T-Stats 2022,291400,Arts & Leisure Services Sport & Fitness
South Lakeland District Council,http://opendatacommunities.org/id/district-council/south-lakeland,31/05/2022,Case Management Account Mgmt,Central Services,http://opendatacommunities.org/def/concept/finance/sercop/objective/102,ROYAL MAIL GROUP PLC,,30-05-2022,0000180594,1004.5,0,2022-23 Royal Mail Postal Charges a/c,301200,Mail Services� Postage
South Lakeland District Council,http://opendatacommunities.org/id/district-council/south-lakeland,31/05/2022,Business Support Community Services,Cultural Environmental Regulatory & Planning Services,http://opendatacommunities.org/def/concept/finance/sercop/objective/104,ADECCO UK LIMITED,00593232,16-05-2022,0000180462,1010.29,0,Agency staff,261400,HR Temporary & Agency Staff
South Lakeland District Council,http://opendatacommunities.org/id/district-council/south-lakeland,31/05/2022,Case Management Account Mgmt,Cultural Environmental Regulatory & Planning Services,http://opendatacommunities.org/def/concept/finance/sercop/objective/104,LITTLE & CAINE LTD,04524383,18-05-2022,0000180641,1017,0,Direct Cremation for,121300,Cemetery & Crematorium Body Transport
South Lakeland District Council,http://opendatacommunities.org/id/district-council/south-lakeland,31/05/2022,Business Support Community Services,Cultural Environmental Regulatory & Planning Services,http://opendatacommunities.org/def/concept/finance/sercop/objective/104,BOC GASES,337663,09-05-2022,0000180397,1018.3,0,Gases,371100,Utilities Gas
South Lakeland District Council,http://opendatacommunities.org/id/district-council/south-lakeland,31/05/2022,Case Management Regulatory,Central Services,http://opendatacommunities.org/def/concept/finance/sercop/objective/102,The Oyster Partnership,05020374,16-05-2022,0000180436,1032.5,0,Agency Officer - Licensing,261300,HR Recruitment & Assessment
South Lakeland District Council,http://opendatacommunities.org/id/district-council/south-lakeland,31/05/2022,Delivery Commercial Services,External Trading Accounts,,PPL PRS Limited,10376001,30-05-2022,0000180998,1039.86,0,Background Music Licence - Kendal,202100,Financial Services Subscriptions
South Lakeland District Council,http://opendatacommunities.org/id/district-council/south-lakeland,31/05/2022,Case Management People,Housing Services,http://opendatacommunities.org/def/concept/finance/sercop/objective/108,GROWING CONCERNS LTD,,09-05-2022,0000180335,1050,0,Handy Person Scheme. Invoices sent from,391200,Construction Engineering
South Lakeland District Council,http://opendatacommunities.org/id/district-council/south-lakeland,31/05/2022,Case Management Account Mgmt,Cultural Environmental Regulatory & Planning Services,http://opendatacommunities.org/def/concept/finance/sercop/objective/104,PS BUSINESS MATTERS,08147185,16-05-2022,0000180441,1050,0,'SNN Policy Drafting',151900,Consultancy Management
South Lakeland District Council,http://opendatacommunities.org/id/district-council/south-lakeland,31/05/2022,Case Management Regulatory,Central Services,http://opendatacommunities.org/def/concept/finance/sercop/objective/102,The Oyster Partnership,05020374,23-05-2022,0000180578,1050,0,Agency Officer - Licensing,261300,HR Recruitment & Assessment
South Lakeland District Council,http://opendatacommunities.org/id/district-council/south-lakeland,31/05/2022,Westmorland Centre Parking Office,Highways & Transport Services,http://opendatacommunities.org/def/concept/finance/sercop/objective/107,Security Plus   Limited,,18-05-2022,0000180519,1074.14,0,Bulk cash collection April 2022-March,209999,Financial Services Not Elsewhere Classif
South Lakeland District Council,http://opendatacommunities.org/id/district-council/south-lakeland,31/05/2022,Case Management Account Mgmt,Central Services,http://opendatacommunities.org/def/concept/finance/sercop/objective/102,MIDLAND SOFTWARE LTD,01852206,01-05-2022,0000180271,1080,0,MHR update - to support with the Live,271600,ICT Software Customised & Bespoke
South Lakeland District Council,http://opendatacommunities.org/id/district-council/south-lakeland,31/05/2022,Case Management,Central Services,http://opendatacommunities.org/def/concept/finance/sercop/objective/102,LOCAL GOVERNMENT ASSOCIATION,,30-05-2022,0000180951,1090,0,Lawrence Conway and Cllr Jonathan Brook,202100,Financial Services Subscriptions
South Lakeland District Council,http://opendatacommunities.org/id/district-council/south-lakeland,31/05/2022,Case Management Regulatory,Central Services,http://opendatacommunities.org/def/concept/finance/sercop/objective/102,The Oyster Partnership,05020374,04-05-2022,0000180168,1098.6,0,Agency Officer - Licensing,261300,HR Recruitment & Assessment
South Lakeland District Council,http://opendatacommunities.org/id/district-council/south-lakeland,31/05/2022,Case Management Regulatory,Central Services,http://opendatacommunities.org/def/concept/finance/sercop/objective/102,The Oyster Partnership,05020374,23-05-2022,0000180577,1120,0,Agency Environmental Health Officer,261300,HR Recruitment & Assessment
South Lakeland District Council,http://opendatacommunities.org/id/district-council/south-lakeland,31/05/2022,Case Management Regulatory,Cultural Environmental Regulatory & Planning Services,http://opendatacommunities.org/def/concept/finance/sercop/objective/104,STM ENVIRONMENTAL LTD,4575523,16-05-2022,0000180470,1150.06,0,STM Software Annual Maintenance,159999,Consultancy Not Elsewhere Classified
South Lakeland District Council,http://opendatacommunities.org/id/district-council/south-lakeland,31/05/2022,Case Management Regulatory,Central Services,http://opendatacommunities.org/def/concept/finance/sercop/objective/102,The Oyster Partnership,05020374,04-05-2022,0000180166,1161,0,Agency Officer - Licensing wef 4 April,261300,HR Recruitment & Assessment
South Lakeland District Council,http://opendatacommunities.org/id/district-council/south-lakeland,31/05/2022,Support Services,Central Services,http://opendatacommunities.org/def/concept/finance/sercop/objective/102,Print.UK.Com,,18-05-2022,0000180612,1166.16,0,Printing and postage (ballot papers and,191600,Facilities Printing
South Lakeland District Council,http://opendatacommunities.org/id/district-council/south-lakeland,31/05/2022,Business Support Community Services,Cultural Environmental Regulatory & Planning Services,http://opendatacommunities.org/def/concept/finance/sercop/objective/104,ADECCO UK LIMITED,00593232,16-05-2022,0000180464,1175.16,0,Agency staff,261400,HR Temporary & Agency Staff
South Lakeland District Council,http://opendatacommunities.org/id/district-council/south-lakeland,31/05/2022,Business Support Community Services,Cultural Environmental Regulatory & Planning Services,http://opendatacommunities.org/def/concept/finance/sercop/objective/104,Harry Park Tyres Ltd,08131208,23-05-2022,0000180801,1180,0,Tyres,381500,Vehicle Mgt Parts
South Lakeland District Council,http://opendatacommunities.org/id/district-council/south-lakeland,31/05/2022,Case Management People,Housing Services,http://opendatacommunities.org/def/concept/finance/sercop/objective/108,Landlord,,16-05-2022,0000180601,1190,0,"Flats 1A, 1B and 1C Kentworks, 1",202000,Financial Services Rents
South Lakeland District Council,http://opendatacommunities.org/id/district-council/south-lakeland,31/05/2022,Case Management,Central Services,http://opendatacommunities.org/def/concept/finance/sercop/objective/102,The Oyster Partnership,05020374,23-05-2022,0000180804,1194,0,Agency Staff,261300,HR Recruitment & Assessment
South Lakeland District Council,http://opendatacommunities.org/id/district-council/south-lakeland,31/05/2022,Case Management Regulatory,Central Services,http://opendatacommunities.org/def/concept/finance/sercop/objective/102,The Oyster Partnership,05020374,04-05-2022,0000180165,1200,0,Agency Environmental Health Officer,261300,HR Recruitment & Assessment
South Lakeland District Council,http://opendatacommunities.org/id/district-council/south-lakeland,31/05/2022,Case Management Account Mgmt,Cultural Environmental Regulatory & Planning Services,http://opendatacommunities.org/def/concept/finance/sercop/objective/104,John Barker,,04-05-2022,0000180250,1200,0,to manufacture 2 picnic tables @ 2.1m,219999,Furniture Not Elsewhere Classified
South Lakeland District Council,http://opendatacommunities.org/id/district-council/south-lakeland,31/05/2022,Case Management Regulatory,Central Services,http://opendatacommunities.org/def/concept/finance/sercop/objective/102,The Oyster Partnership,05020374,09-05-2022,0000180347,1200,0,Agency Environmental Health Officer,261300,HR Recruitment & Assessment
South Lakeland District Council,http://opendatacommunities.org/id/district-council/south-lakeland,31/05/2022,Case Management Regulatory,Central Services,http://opendatacommunities.org/def/concept/finance/sercop/objective/102,The Oyster Partnership,05020374,25-05-2022,0000180805,1200,0,Agency Environmental Health Officer,261300,HR Recruitment & Assessment
South Lakeland District Council,http://opendatacommunities.org/id/district-council/south-lakeland,31/05/2022,Case Management Account Mgmt,Central Services,http://opendatacommunities.org/def/concept/finance/sercop/objective/102,Konica Minolta Bus Solutions (UK) Ltd,,11-05-2022,0000180360,1218.03,0,Office clicks,192000,Facilities Reprographics
South Lakeland District Council,http://opendatacommunities.org/id/district-council/south-lakeland,31/05/2022,Business Support Community Services,Cultural Environmental Regulatory & Planning Services,http://opendatacommunities.org/def/concept/finance/sercop/objective/104,GREENCHEM SOLUTIONS LTD,05175801,30-05-2022,0000180889,1224.3,0,AdBlue,189999,Environmental Services Not Elsewhere Cla
South Lakeland District Council,http://opendatacommunities.org/id/district-council/south-lakeland,31/05/2022,Case Management Regulatory,Central Services,http://opendatacommunities.org/def/concept/finance/sercop/objective/102,G2 Recruitment Solutions,,04-05-2022,0000180254,1240,0,Agency Staff,261413,HR- Temporary Staff- Professional
South Lakeland District Council,http://opendatacommunities.org/id/district-council/south-lakeland,31/05/2022,Case Management Regulatory,Central Services,http://opendatacommunities.org/def/concept/finance/sercop/objective/102,G2 Recruitment Solutions,,16-05-2022,0000180481,1240,0,Agency Staff,261413,HR- Temporary Staff- Professional
South Lakeland District Council,http://opendatacommunities.org/id/district-council/south-lakeland,31/05/2022,Delivery Commercial Services,Culture and Related Serv,http://opendatacommunities.org/def/concept/finance/sercop/objective/104,R G PARKINS & PARTNERS LTD,04107150,30-05-2022,0000180906,1250,0,Grange Promenade & Lido - CDM Services,152200,Consultancy Technical & Feasibility
South Lakeland District Council,http://opendatacommunities.org/id/district-council/south-lakeland,31/05/2022,Case Management,Central Services,http://opendatacommunities.org/def/concept/finance/sercop/objective/102,The Oyster Partnership,05020374,23-05-2022,0000180574,1253.7,0,Agency Staff,261300,HR Recruitment & Assessment
South Lakeland District Council,http://opendatacommunities.org/id/district-council/south-lakeland,31/05/2022,Support Services,Central Services,http://opendatacommunities.org/def/concept/finance/sercop/objective/102,Ulverston Coronation Hall,,25-05-2022,0000180873,1269,0,Use of the Coronation Hall as a polling,291300,Arts & Leisure Services Performing Arts
South Lakeland District Council,http://opendatacommunities.org/id/district-council/south-lakeland,31/05/2022,Business Support Community Services,Cultural Environmental Regulatory & Planning Services,http://opendatacommunities.org/def/concept/finance/sercop/objective/104,BRIAN ARMISTEAD LTD T/A SINKFALL RECYCLI,04133280,16-05-2022,0000180563,1273.6,0,Tipping charges 2022/23,391110,Construction Buildings Construction
South Lakeland District Council,http://opendatacommunities.org/id/district-council/south-lakeland,31/05/2022,Business Support Community Services,Cultural Environmental Regulatory & Planning Services,http://opendatacommunities.org/def/concept/finance/sercop/objective/104,Verizon Connect UK Ltd,05265904,09-05-2022,0000180316,1279.67,0,Tracking system,361000,Public Transport Fleet Management
South Lakeland District Council,http://opendatacommunities.org/id/district-council/south-lakeland,31/05/2022,Case Management,Central Services,http://opendatacommunities.org/def/concept/finance/sercop/objective/102,The Oyster Partnership,05020374,09-05-2022,0000180345,1303.45,0,Agency Staff,261300,HR Recruitment & Assessment
South Lakeland District Council,http://opendatacommunities.org/id/district-council/south-lakeland,31/05/2022,Case Management Regulatory,Central Services,http://opendatacommunities.org/def/concept/finance/sercop/objective/102,The Oyster Partnership,05020374,25-05-2022,0000180803,1312.5,0,Agency Officer - Licensing,261300,HR Recruitment & Assessment
South Lakeland District Council,http://opendatacommunities.org/id/district-council/south-lakeland,31/05/2022,Case Management Account Mgmt,Cultural Environmental Regulatory & Planning Services,http://opendatacommunities.org/def/concept/finance/sercop/objective/104,CUMBRIA CHAMBER OF COMMERCE,04211364,23-05-2022,0000180604,1320,0,Membership to Chamber of Commerce,201700,Financial Services Grants
South Lakeland District Council,http://opendatacommunities.org/id/district-council/south-lakeland,31/05/2022,Case Management Regulatory,Central Services,http://opendatacommunities.org/def/concept/finance/sercop/objective/102,G2 Recruitment Solutions,,30-05-2022,0000180943,1320,0,Agency Staff,261413,HR- Temporary Staff- Professional
South Lakeland District Council,http://opendatacommunities.org/id/district-council/south-lakeland,31/05/2022,Case Management Account Mgmt,Central Services,http://opendatacommunities.org/def/concept/finance/sercop/objective/102,ROYAL MAIL GROUP PLC,,30-05-2022,0000180589,1326.04,0,2022-23 Royal Mail Postal Charges a/c,301200,Mail Services� Postage
South Lakeland District Council,http://opendatacommunities.org/id/district-council/south-lakeland,31/05/2022,Case Management People,Housing Services,http://opendatacommunities.org/def/concept/finance/sercop/objective/108,James Andrews Recruitment Solutions,06834852,04-05-2022,0000180255,1330.62,0,Payment for ,261400,HR Temporary & Agency Staff
South Lakeland District Council,http://opendatacommunities.org/id/district-council/south-lakeland,31/05/2022,Case Management Regulatory,Central Services,http://opendatacommunities.org/def/concept/finance/sercop/objective/102,The Oyster Partnership,05020374,09-05-2022,0000180346,1332,0,Agency Officer - Licensing wef 4 April,261300,HR Recruitment & Assessment
South Lakeland District Council,http://opendatacommunities.org/id/district-council/south-lakeland,31/05/2022,Case Management Regulatory,Central Services,http://opendatacommunities.org/def/concept/finance/sercop/objective/102,The Oyster Partnership,05020374,23-05-2022,0000180576,1332,0,Agency Officer - Licensing wef 4 April,261300,HR Recruitment & Assessment
South Lakeland District Council,http://opendatacommunities.org/id/district-council/south-lakeland,31/05/2022,Case Management Regulatory,Central Services,http://opendatacommunities.org/def/concept/finance/sercop/objective/102,The Oyster Partnership,05020374,25-05-2022,0000180806,1332,0,Agency Officer - Licensing wef 4 April,261300,HR Recruitment & Assessment
South Lakeland District Council,http://opendatacommunities.org/id/district-council/south-lakeland,31/05/2022,Kendal Town Hall,Cultural Environmental Regulatory & Planning Services,http://opendatacommunities.org/def/concept/finance/sercop/objective/104,THE CATERING PARTNERSHIP,03150517,18-05-2022,0000180529,1338.4,0,New catering fridge for Kendal Town,111100,Catering Equipment & Utensils
South Lakeland District Council,http://opendatacommunities.org/id/district-council/south-lakeland,31/05/2022,Delivery Commercial Services,Planning and Development,,Marketaylor Limited,10738578,09-05-2022,0000180350,1350,0,Proposed Replacement Goods lift at,152000,Consultancy Procurement
South Lakeland District Council,http://opendatacommunities.org/id/district-council/south-lakeland,31/05/2022,Support Services,Housing,http://opendatacommunities.org/def/concept/finance/sercop/objective/108,Browne Jacobson LLP,OC306448,09-05-2022,0000180310,1360.54,0,legal fees in connection with proposed,281200,Legal Services General Support
South Lakeland District Council,http://opendatacommunities.org/id/district-council/south-lakeland,31/05/2022,Case Management Account Mgmt,Non-Service Payments,,Kendal BID Ltd,08986243,16-05-2022,0000180479,1368.14,0,Monies collected,201700,Financial Services Grants
South Lakeland District Council,http://opendatacommunities.org/id/district-council/south-lakeland,31/05/2022,ICT Group,Central Services,http://opendatacommunities.org/def/concept/finance/sercop/objective/102,CABLE & WIRELESS UK (VODAFONE),,18-05-2022,0000179464,1418.47,0,MAP Dedicated access bearer and PSN,271700,ICT Telecommunications Fixed
South Lakeland District Council,http://opendatacommunities.org/id/district-council/south-lakeland,31/05/2022,Kendal Town Hall,Central Services,http://opendatacommunities.org/def/concept/finance/sercop/objective/102,SOUNDSMITH LIMITED,05366630,16-05-2022,0000180506,1425,0,Audio support for the Lake Admin,171111,Education Audio Visual
South Lakeland District Council,http://opendatacommunities.org/id/district-council/south-lakeland,31/05/2022,Case Management Regulatory,Central Services,http://opendatacommunities.org/def/concept/finance/sercop/objective/102,G2 Recruitment Solutions,,16-05-2022,0000180439,1480,0,Agency Staff,261413,HR- Temporary Staff- Professional
South Lakeland District Council,http://opendatacommunities.org/id/district-council/south-lakeland,31/05/2022,Case Management Regulatory,Central Services,http://opendatacommunities.org/def/concept/finance/sercop/objective/102,G2 Recruitment Solutions,,25-05-2022,0000180810,1480,0,Agency Staff,261413,HR- Temporary Staff- Professional
South Lakeland District Council,http://opendatacommunities.org/id/district-council/south-lakeland,31/05/2022,Case Management Account Mgmt,Highways & Transport Services,http://opendatacommunities.org/def/concept/finance/sercop/objective/107,CAPITA BUSINESS SERVICES LTD (NCR),,01-05-2022,0000180884,1514.23,0,2022/23 Internet payment/bank charges,261500,HR Training & Conferences
South Lakeland District Council,http://opendatacommunities.org/id/district-council/south-lakeland,31/05/2022,Case Management Account Mgmt,Central Services,http://opendatacommunities.org/def/concept/finance/sercop/objective/102,CIVICA UK LTD,01628868,18-05-2022,0000180640,1548.67,0,"Licence, Support and Maintenance",271600,ICT Software Customised & Bespoke
South Lakeland District Council,http://opendatacommunities.org/id/district-council/south-lakeland,31/05/2022,ICT Group,Central Services,http://opendatacommunities.org/def/concept/finance/sercop/objective/102,British Geological Survey (NERC),RC000740,30-05-2022,0000180962,1553.91,0,Renewal of BGS digital data licence x 2,271440,ICT Software
South Lakeland District Council,http://opendatacommunities.org/id/district-council/south-lakeland,31/05/2022,Finance,Highways & Transport Services,http://opendatacommunities.org/def/concept/finance/sercop/objective/107,E H BOOTH & CO LTD,,16-05-2022,0000180419,1554.37,0,Booths Kirkby Lonsdale Q4,111200,Catering Food & Beverages
South Lakeland District Council,http://opendatacommunities.org/id/district-council/south-lakeland,31/05/2022,Finance,Highways & Transport Services,http://opendatacommunities.org/def/concept/finance/sercop/objective/107,E H BOOTH & CO LTD,,16-05-2022,0000180419,1557.38,0,Booths Kirkby Lonsdale Q4,111200,Catering Food & Beverages
South Lakeland District Council,http://opendatacommunities.org/id/district-council/south-lakeland,31/05/2022,Case Management People,Housing Services,http://opendatacommunities.org/def/concept/finance/sercop/objective/108,SOUTH LAKES HOUSING RENT A/C,,30-05-2022,0000180967,1600,0,Rent arrears payment,191700,Facilities Property Management
South Lakeland District Council,http://opendatacommunities.org/id/district-council/south-lakeland,31/05/2022,Business Support Community Services,Cultural Environmental Regulatory & Planning Services,http://opendatacommunities.org/def/concept/finance/sercop/objective/104,Southfield RCV Services,,30-05-2022,0000180843,1638,0,Repairs,380000,Vehicle Management
South Lakeland District Council,http://opendatacommunities.org/id/district-council/south-lakeland,31/05/2022,Case Management Account Mgmt,Central Services,http://opendatacommunities.org/def/concept/finance/sercop/objective/102,ROYAL MAIL GROUP PLC,,04-05-2022,0000180180,1643.12,0,2021-22 Postal Charges a/c 0198123013,301200,Mail Services� Postage
South Lakeland District Council,http://opendatacommunities.org/id/district-council/south-lakeland,31/05/2022,Support Services,Housing,http://opendatacommunities.org/def/concept/finance/sercop/objective/108,BEVAN BRITTAN,OC309219,30-05-2022,0000180935,1653.6,0,ref: HOUS0084- Advice on Affordable,280000,Legal Services
South Lakeland District Council,http://opendatacommunities.org/id/district-council/south-lakeland,31/05/2022,Case Management,Non-Service Payments,,CYCLESCHEME LTD,05363678,04-05-2022,0000180258,1666.67,0,cycle W621855,389999,Vehicle Mgt Not Else Class
South Lakeland District Council,http://opendatacommunities.org/id/district-council/south-lakeland,31/05/2022,Case Management People,Housing Services,http://opendatacommunities.org/def/concept/finance/sercop/objective/108,James Andrews Recruitment Solutions,06834852,16-05-2022,0000180472,1668.24,0,Payment for ,261400,HR Temporary & Agency Staff
South Lakeland District Council,http://opendatacommunities.org/id/district-council/south-lakeland,31/05/2022,Case Management People,Housing Services,http://opendatacommunities.org/def/concept/finance/sercop/objective/108,James Andrews Recruitment Solutions,06834852,25-05-2022,0000180678,1668.24,0,Payment for ,261400,HR Temporary & Agency Staff
South Lakeland District Council,http://opendatacommunities.org/id/district-council/south-lakeland,31/05/2022,Case Management People,Housing Services,http://opendatacommunities.org/def/concept/finance/sercop/objective/108,James Andrews Recruitment Solutions,06834852,30-05-2022,0000180974,1668.24,0,Payment for ,261400,HR Temporary & Agency Staff
South Lakeland District Council,http://opendatacommunities.org/id/district-council/south-lakeland,31/05/2022,Westmorland Centre Parking Office,Highways & Transport Services,http://opendatacommunities.org/def/concept/finance/sercop/objective/107,Worldpay (UK) Limited (NCR),,01-05-2022,0000180872,1694.83,0,Credit card commision (PaybyPhone),201200,Financial Services Banking
South Lakeland District Council,http://opendatacommunities.org/id/district-council/south-lakeland,31/05/2022,Case Management Regulatory,Central Services,http://opendatacommunities.org/def/concept/finance/sercop/objective/102,Macdonald & Company Freelance Ltd,03882135,30-05-2022,0000180938,1714.75,0,Contract Worker,261400,HR Temporary & Agency Staff
South Lakeland District Council,http://opendatacommunities.org/id/district-council/south-lakeland,31/05/2022,Human Resources,Central Services,http://opendatacommunities.org/def/concept/finance/sercop/objective/102,Choose Occupational Health,07365943,16-05-2022,0000180312,1720,0,OHP -,191800,Facilities Public Relations & Image
South Lakeland District Council,http://opendatacommunities.org/id/district-council/south-lakeland,31/05/2022,Case Management Regulatory,Central Services,http://opendatacommunities.org/def/concept/finance/sercop/objective/102,Macdonald & Company Freelance Ltd,03882135,25-05-2022,0000180808,1752.75,0,Contract Worker,261400,HR Temporary & Agency Staff
South Lakeland District Council,http://opendatacommunities.org/id/district-council/south-lakeland,31/05/2022,ICT Group,Central Services,http://opendatacommunities.org/def/concept/finance/sercop/objective/102,IT PROFESSIONAL SERVICES (ITPS),,09-05-2022,0000180361,1812,0,ITPS FTTC 80M/20M Annual Rental,279999,ICT Not Elsewhere Classified
South Lakeland District Council,http://opendatacommunities.org/id/district-council/south-lakeland,31/05/2022,Westmorland Centre Parking Office,Highways & Transport Services,http://opendatacommunities.org/def/concept/finance/sercop/objective/107,Worldpay (UK) Limited (NCR),,01-05-2022,0000180516,1862.81,0,Credit card commision (PaybyPhone),201200,Financial Services Banking
South Lakeland District Council,http://opendatacommunities.org/id/district-council/south-lakeland,31/05/2022,Case Management Account Mgmt,Cultural Environmental Regulatory & Planning Services,http://opendatacommunities.org/def/concept/finance/sercop/objective/104,CONTINENTAL LANDSCAPES LTD,2108452,30-05-2022,0000180565,1925.77,0,Parks Routine Maintenance,391310,Construction Open Spaces Construction
South Lakeland District Council,http://opendatacommunities.org/id/district-council/south-lakeland,31/05/2022,ICT Group,Central Services,http://opendatacommunities.org/def/concept/finance/sercop/objective/102,The Networking People (Northwest) LTD,,11-05-2022,0000180337,1950,0,Network support onboarding - 4x days,270000,Information Communications Technology
South Lakeland District Council,http://opendatacommunities.org/id/district-council/south-lakeland,31/05/2022,Case Management People,Housing Services,http://opendatacommunities.org/def/concept/finance/sercop/objective/108,SOUTH LAKES HOUSING RENT A/C,,11-05-2022,0000180450,2000,0,Rent arrears payment,191700,Facilities Property Management
South Lakeland District Council,http://opendatacommunities.org/id/district-council/south-lakeland,31/05/2022,Case Management Account Mgmt,Central Services,http://opendatacommunities.org/def/concept/finance/sercop/objective/102,ROYAL MAIL GROUP PLC,,04-05-2022,0000180182,2000.77,0,2021-22 Postal Charges a/c 0198123013,301200,Mail Services� Postage
South Lakeland District Council,http://opendatacommunities.org/id/district-council/south-lakeland,31/05/2022,Support Services,Central Services,http://opendatacommunities.org/def/concept/finance/sercop/objective/102,Print.UK.Com,,30-05-2022,0000180862,2001,0,Printing and postage (ballot papers and,191600,Facilities Printing
South Lakeland District Council,http://opendatacommunities.org/id/district-council/south-lakeland,31/05/2022,Business Support Community Services,Cultural Environmental Regulatory & Planning Services,http://opendatacommunities.org/def/concept/finance/sercop/objective/104,Masterstaff Limited,02777593,23-05-2022,0000180813,2029.73,0,Agency staff,261300,HR Recruitment & Assessment
South Lakeland District Council,http://opendatacommunities.org/id/district-council/south-lakeland,31/05/2022,Human Resources,Central Services,http://opendatacommunities.org/def/concept/finance/sercop/objective/102,Ginger Dog,11132740,25-05-2022,0000180430,2100,0,Team Leader Development Programme,261500,HR Training & Conferences
South Lakeland District Council,http://opendatacommunities.org/id/district-council/south-lakeland,31/05/2022,Business Support Community Services,Cultural Environmental Regulatory & Planning Services,http://opendatacommunities.org/def/concept/finance/sercop/objective/104,Harry Park Tyres Ltd,08131208,23-05-2022,0000180822,2100,0,Tyres,381500,Vehicle Mgt Parts
South Lakeland District Council,http://opendatacommunities.org/id/district-council/south-lakeland,31/05/2022,Business Support Community Services,Cultural Environmental Regulatory & Planning Services,http://opendatacommunities.org/def/concept/finance/sercop/objective/104,Masterstaff Limited,02777593,23-05-2022,0000180561,2153.4,0,Agency staff,261300,HR Recruitment & Assessment
South Lakeland District Council,http://opendatacommunities.org/id/district-council/south-lakeland,31/05/2022,Business Support Community Services,Cultural Environmental Regulatory & Planning Services,http://opendatacommunities.org/def/concept/finance/sercop/objective/104,PENNINGTONS (KENDAL) LIMITED,00434649,23-05-2022,0000180791,2200,0,Use of Boundary Bank,182013,Environment Waste Mgt Waste Collection
South Lakeland District Council,http://opendatacommunities.org/id/district-council/south-lakeland,31/05/2022,Support Services,Central Services,http://opendatacommunities.org/def/concept/finance/sercop/objective/102,ROYAL MAIL GROUP PLC,,30-05-2022,0000180863,2220.1,0,Response plus service (license,301200,Mail Services� Postage
South Lakeland District Council,http://opendatacommunities.org/id/district-council/south-lakeland,31/05/2022,Case Management Account Mgmt,Cultural Environmental Regulatory & Planning Services,http://opendatacommunities.org/def/concept/finance/sercop/objective/104,CONTINENTAL LANDSCAPES LTD,2108452,30-05-2022,0000180565,2222.05,0,Parks Routine Maintenance,391310,Construction Open Spaces Construction
South Lakeland District Council,http://opendatacommunities.org/id/district-council/south-lakeland,31/05/2022,Case Management Account Mgmt,Transport,http://opendatacommunities.org/def/concept/finance/sercop/objective/107,THE SIGN MAN,05748839,09-05-2022,0000179805,2239,0,30 x A3 aluminium signs with fixing,102400,Building Signage
South Lakeland District Council,http://opendatacommunities.org/id/district-council/south-lakeland,31/05/2022,Case Management Account Mgmt,Cultural Environmental Regulatory & Planning Services,http://opendatacommunities.org/def/concept/finance/sercop/objective/104,PPL PRS Limited,10376001,30-05-2022,0000180918,2297.85,0,Parks and open spaces performing rights,202100,Financial Services Subscriptions
South Lakeland District Council,http://opendatacommunities.org/id/district-council/south-lakeland,31/05/2022,Case Management Account Mgmt,Central Services,http://opendatacommunities.org/def/concept/finance/sercop/objective/102,CAPITA BUSINESS SERVICES LTD (NCR),,01-05-2022,0000180876,2372.18,0,2022/23 Internet payment/bank charges,261500,HR Training & Conferences
South Lakeland District Council,http://opendatacommunities.org/id/district-council/south-lakeland,31/05/2022,Delivery Commercial Services,Culture and Related Serv,http://opendatacommunities.org/def/concept/finance/sercop/objective/104,Day Cummins limited,04021353,16-05-2022,0000180568,2380,0,Grange Lido - Consultancy work,109999,Building Not Elsewhere Classified
South Lakeland District Council,http://opendatacommunities.org/id/district-council/south-lakeland,31/05/2022,Support Services,Central Services,http://opendatacommunities.org/def/concept/finance/sercop/objective/102,Print.UK.Com,,30-05-2022,0000180864,2408.1,0,Printing and postage costs (ballot,191600,Facilities Printing
South Lakeland District Council,http://opendatacommunities.org/id/district-council/south-lakeland,31/05/2022,Case Management,Central Services,http://opendatacommunities.org/def/concept/finance/sercop/objective/102,SOUNDSMITH LIMITED,05366630,30-05-2022,0000180888,2472,0,May 6th Local Elections Displays Hire,171111,Education Audio Visual
South Lakeland District Council,http://opendatacommunities.org/id/district-council/south-lakeland,31/05/2022,Case Management Account Mgmt,Non-Service Payments,,Kendal BID Ltd,08986243,16-05-2022,0000180490,2487.86,0,Monies collected,201700,Financial Services Grants
South Lakeland District Council,http://opendatacommunities.org/id/district-council/south-lakeland,31/05/2022,Case Management Regulatory,Cultural Environmental Regulatory & Planning Services,http://opendatacommunities.org/def/concept/finance/sercop/objective/104,MOGO UK,03091301,11-05-2022,0000180265,2506.9,0,4 to view labels (4 labels per A4 sheet),281400,Legal Services Specialist Support
South Lakeland District Council,http://opendatacommunities.org/id/district-council/south-lakeland,31/05/2022,Case Management Regulatory,Central Services,http://opendatacommunities.org/def/concept/finance/sercop/objective/102,Macdonald & Company Freelance Ltd,03882135,16-05-2022,0000180482,2584,0,Contract Worker,261400,HR Temporary & Agency Staff
South Lakeland District Council,http://opendatacommunities.org/id/district-council/south-lakeland,31/05/2022,Business Support Community Services,Cultural Environmental Regulatory & Planning Services,http://opendatacommunities.org/def/concept/finance/sercop/objective/104,BRIAN ARMISTEAD LTD T/A SINKFALL RECYCLI,04133280,23-05-2022,0000180787,2608,0,Tipping charges 2022/23,391110,Construction Buildings Construction
South Lakeland District Council,http://opendatacommunities.org/id/district-council/south-lakeland,31/05/2022,Support Services,Culture and Related Serv,http://opendatacommunities.org/def/concept/finance/sercop/objective/104,Browne Jacobson LLP,OC306448,09-05-2022,0000180323,2611.8,0,Abbot Hall CLEP CONT0707,281200,Legal Services General Support
South Lakeland District Council,http://opendatacommunities.org/id/district-council/south-lakeland,31/05/2022,Case Management Regulatory,Central Services,http://opendatacommunities.org/def/concept/finance/sercop/objective/102,LAKE DISTRICT NATIONAL PARK AUTHORITY,,09-05-2022,0000180264,2632.5,0,LAND CHARGE SEARCH ENQUIRIES LDNP,201700,Financial Services Grants
South Lakeland District Council,http://opendatacommunities.org/id/district-council/south-lakeland,31/05/2022,Support Services,SLDC as Agent,,Arthur J Gallagher Insurance Brokers Lld,00108909,04-05-2022,0000180274,2675,0,Brokerage and other insurance policies,201800,Financial Services Insurance
South Lakeland District Council,http://opendatacommunities.org/id/district-council/south-lakeland,31/05/2022,Case Management Account Mgmt,Housing Services,http://opendatacommunities.org/def/concept/finance/sercop/objective/108,LRM Security Ltd,,30-05-2022,0000180996,2677.5,0,LRM Security Cover TVF,192213,Facilities Security Manned Guarding
South Lakeland District Council,http://opendatacommunities.org/id/district-council/south-lakeland,31/05/2022,Support Services,Central Services,http://opendatacommunities.org/def/concept/finance/sercop/objective/102,Print.UK.Com,,18-05-2022,0000180610,2699.29,0,Printing and postage (ballot papers and,191600,Facilities Printing
South Lakeland District Council,http://opendatacommunities.org/id/district-council/south-lakeland,31/05/2022,Case Management Account Mgmt,Non-Service Payments,,Kendal BID Ltd,08986243,16-05-2022,0000180487,2751.97,0,Monies Collected,201700,Financial Services Grants
South Lakeland District Council,http://opendatacommunities.org/id/district-council/south-lakeland,31/05/2022,Case Management,Central Services,http://opendatacommunities.org/def/concept/finance/sercop/objective/102,District Councils' Network,,11-05-2022,0000180331,2780,0,Annual subscription to the District,202100,Financial Services Subscriptions
South Lakeland District Council,http://opendatacommunities.org/id/district-council/south-lakeland,31/05/2022,Customer Services,Cultural Environmental Regulatory & Planning Services,http://opendatacommunities.org/def/concept/finance/sercop/objective/104,MILNTHORPE KENNELS & CATTERY,08932302,09-05-2022,0000180357,2791.67,0,Stray Dog kennelling fees 2022/23,181500,Environment Animal Services
South Lakeland District Council,http://opendatacommunities.org/id/district-council/south-lakeland,31/05/2022,Support Services,Central Services,http://opendatacommunities.org/def/concept/finance/sercop/objective/102,Central Event Hire Ltd,09882617,04-05-2022,0000180266,2942.54,0,Costs for screen hire - currently no,211200,Furniture & Soft Furn Office Furniture
South Lakeland District Council,http://opendatacommunities.org/id/district-council/south-lakeland,31/05/2022,Case Management Account Mgmt,Cultural Environmental Regulatory & Planning Services,http://opendatacommunities.org/def/concept/finance/sercop/objective/104,KENDAL TORCHLIGHT PROCESSION LTD,04583995,25-05-2022,0000180796,3000,0,Strategic Cultural Partner funding,201700,Financial Services Grants
South Lakeland District Council,http://opendatacommunities.org/id/district-council/south-lakeland,31/05/2022,Business Support Community Services,Cultural Environmental Regulatory & Planning Services,http://opendatacommunities.org/def/concept/finance/sercop/objective/104,Masterstaff Limited,02777593,09-05-2022,0000180375,3012.92,0,Agency staff,261300,HR Recruitment & Assessment
South Lakeland District Council,http://opendatacommunities.org/id/district-council/south-lakeland,31/05/2022,ICT Group,Central Services,http://opendatacommunities.org/def/concept/finance/sercop/objective/102,Commify UK LTD trading as Text Anywhere,04217280,23-05-2022,0000180797,3024,0,"90,000 SMS Credits",271699,ICT- Telecommunications
South Lakeland District Council,http://opendatacommunities.org/id/district-council/south-lakeland,31/05/2022,Case Management Account Mgmt,Highways & Transport Services,http://opendatacommunities.org/def/concept/finance/sercop/objective/107,BEMROSE BOOTH PARAGON LTD,04891375,18-05-2022,0000179435,3044.04,0,"304,000 ACS Reflex Tickets for Multi",191600,Facilities Printing
South Lakeland District Council,http://opendatacommunities.org/id/district-council/south-lakeland,31/05/2022,Delivery Commercial Services,Central Services,http://opendatacommunities.org/def/concept/finance/sercop/objective/102,TEAM (ENERGY AUDITING AGENCY LTD),,25-05-2022,0000180869,3182.91,0,Sigma - Standard Maintenance & Support,151200,Consultancy Efficiency
South Lakeland District Council,http://opendatacommunities.org/id/district-council/south-lakeland,31/05/2022,Business Support Community Services,Cultural Environmental Regulatory & Planning Services,http://opendatacommunities.org/def/concept/finance/sercop/objective/104,Masterstaff Limited,02777593,23-05-2022,0000180634,3209.34,0,Agency staff,261300,HR Recruitment & Assessment
South Lakeland District Council,http://opendatacommunities.org/id/district-council/south-lakeland,31/05/2022,Business Support Community Services,Central Services,http://opendatacommunities.org/def/concept/finance/sercop/objective/102,INNOVATIVE SAFETY SYSTEMS LTD,06875015,09-05-2022,0000180370,3314,0,Safety packs,192200,Facilities Security
South Lakeland District Council,http://opendatacommunities.org/id/district-council/south-lakeland,31/05/2022,Business Support Community Services,Central Services,http://opendatacommunities.org/def/concept/finance/sercop/objective/102,INNOVATIVE SAFETY SYSTEMS LTD,06875015,09-05-2022,0000180371,3314,0,Safety packs,192200,Facilities Security
South Lakeland District Council,http://opendatacommunities.org/id/district-council/south-lakeland,31/05/2022,Business Support Community Services,Cultural Environmental Regulatory & Planning Services,http://opendatacommunities.org/def/concept/finance/sercop/objective/104,BRIAN ARMISTEAD LTD T/A SINKFALL RECYCLI,04133280,16-05-2022,0000180562,3325.44,0,Tipping charges 2022/23,391110,Construction Buildings Construction
South Lakeland District Council,http://opendatacommunities.org/id/district-council/south-lakeland,31/05/2022,Support Services,Central Services,http://opendatacommunities.org/def/concept/finance/sercop/objective/102,Print.UK.Com,,18-05-2022,0000180611,3479.4,0,Printing and postage (ballot papers and,191600,Facilities Printing
South Lakeland District Council,http://opendatacommunities.org/id/district-council/south-lakeland,31/05/2022,ICT Group,Central Services,http://opendatacommunities.org/def/concept/finance/sercop/objective/102,THE DOCUMENT MANAGEMENT GROUP LTD,05210023,18-05-2022,0000180431,3570,0,Support Contract for Canon DRG2090 -,191200,Facilities Document Archiving & Storage
South Lakeland District Council,http://opendatacommunities.org/id/district-council/south-lakeland,31/05/2022,Case Management Account Mgmt,Cultural Environmental Regulatory & Planning Services,http://opendatacommunities.org/def/concept/finance/sercop/objective/104,Springboard Research Ltd,,16-05-2022,0000180514,3570,0,Kendal town centre footfall monitoring,191500,Facilities Market Research
South Lakeland District Council,http://opendatacommunities.org/id/district-council/south-lakeland,31/05/2022,Case Management Account Mgmt,Central Services,http://opendatacommunities.org/def/concept/finance/sercop/objective/102,The Mailing Room Ltd,08708033,09-05-2022,0000180289,3820.6,0,TMR Maintenance charge 01.06.22 -,309999,Mail Services� Not Elsewhere Classified
South Lakeland District Council,http://opendatacommunities.org/id/district-council/south-lakeland,31/05/2022,Support Services,Central Services,http://opendatacommunities.org/def/concept/finance/sercop/objective/102,ROYAL MAIL GROUP PLC,,30-05-2022,0000180861,4273.39,0,Response plus service (license,301200,Mail Services� Postage
South Lakeland District Council,http://opendatacommunities.org/id/district-council/south-lakeland,31/05/2022,Customer Services,Cultural Environmental Regulatory & Planning Services,http://opendatacommunities.org/def/concept/finance/sercop/objective/104,RIGHT 2 WORK,,23-05-2022,0000180694,4295.8,0,Bulky Waste scheme 2022/23,321010,Social Care Adult Advice & Counselling
South Lakeland District Council,http://opendatacommunities.org/id/district-council/south-lakeland,31/05/2022,Case Management Account Mgmt,Central Services,http://opendatacommunities.org/def/concept/finance/sercop/objective/102,CAPITA BUSINESS SERVICES LTD (NCR),,01-05-2022,0000180884,4582.37,0,2022/23 Internet payment/bank charges,261500,HR Training & Conferences
South Lakeland District Council,http://opendatacommunities.org/id/district-council/south-lakeland,31/05/2022,Westmorland Centre Parking Office,Highways & Transport Services,http://opendatacommunities.org/def/concept/finance/sercop/objective/107,CAPITA BUSINESS SERVICES LTD (NCR),,01-05-2022,0000180517,4590.67,0,Credit card commission April 2022-March,261500,HR Training & Conferences
South Lakeland District Council,http://opendatacommunities.org/id/district-council/south-lakeland,31/05/2022,Case Management Account Mgmt,Cultural Environmental Regulatory & Planning Services,http://opendatacommunities.org/def/concept/finance/sercop/objective/104,Future Fixers CIC,13039836,16-05-2022,0000180494,4600,0,Future Fixers Purposeful Business Start,150000,Consultancy
South Lakeland District Council,http://opendatacommunities.org/id/district-council/south-lakeland,31/05/2022,Case Management Account Mgmt,SLDC as Agent,,PAY BY PHONE (PAYPOINT),,16-05-2022,0000180572,4778.08,0,Pay by Phones fees for 1 April to 31,351400,Street & Traffic Traffic Control
South Lakeland District Council,http://opendatacommunities.org/id/district-council/south-lakeland,31/05/2022,Support Services,Central Services,http://opendatacommunities.org/def/concept/finance/sercop/objective/102,Print.UK.Com,,18-05-2022,0000180606,4858.13,0,Printing and postage costs (ballot,191600,Facilities Printing
South Lakeland District Council,http://opendatacommunities.org/id/district-council/south-lakeland,31/05/2022,Case Management Account Mgmt,Cultural Environmental Regulatory & Planning Services,http://opendatacommunities.org/def/concept/finance/sercop/objective/104,BOWNESS THEATRE FESTIVAL LTD,04168289,16-05-2022,0000180417,5000,0,Strategic Cultural Partner funding,291300,Arts & Leisure Services Performing Arts
South Lakeland District Council,http://opendatacommunities.org/id/district-council/south-lakeland,31/05/2022,Case Management Account Mgmt,Cultural Environmental Regulatory & Planning Services,http://opendatacommunities.org/def/concept/finance/sercop/objective/104,Cumbria Local Enterprise Partnership,11730398,18-05-2022,0000180615,5000,0,Grant Funding to the Cumbria Local,151000,Consultancy Business
South Lakeland District Council,http://opendatacommunities.org/id/district-council/south-lakeland,31/05/2022,Support Services,Central Services,http://opendatacommunities.org/def/concept/finance/sercop/objective/102,TIAA Ltd,04546319,23-05-2022,0000180573,5100,0,22/23 Internal Audit Service TIAA LTD,201100,Financial Services Audit
South Lakeland District Council,http://opendatacommunities.org/id/district-council/south-lakeland,31/05/2022,Business Support Community Services,Cultural Environmental Regulatory & Planning Services,http://opendatacommunities.org/def/concept/finance/sercop/objective/104,ALLSTAR BUSINESS SOLUTIONS LTD (NCR),2631112,01-05-2022,0000180396,5409.57,0,Fuel to 30/4,381600,Vehicle Mgt Leasing
South Lakeland District Council,http://opendatacommunities.org/id/district-council/south-lakeland,31/05/2022,Support Services,Central Services,http://opendatacommunities.org/def/concept/finance/sercop/objective/102,BEVAN BRITTAN,OC309219,30-05-2022,0000180909,5593,0,Green Waste and Recyclables Ulverston,280000,Legal Services
South Lakeland District Council,http://opendatacommunities.org/id/district-council/south-lakeland,31/05/2022,ICT Group,Central Services,http://opendatacommunities.org/def/concept/finance/sercop/objective/102,SITEIMPROVE LTD,04932868,25-05-2022,0000180868,5974.62,0,SiteImprove,271515,ICT Website Development
South Lakeland District Council,http://opendatacommunities.org/id/district-council/south-lakeland,31/05/2022,Case Management Account Mgmt,Non-Service Payments,,Kendal BID Ltd,08986243,16-05-2022,0000180485,6001.92,0,Monies collected,201700,Financial Services Grants
South Lakeland District Council,http://opendatacommunities.org/id/district-council/south-lakeland,31/05/2022,Support Services,SLDC as Agent,,Gallagher (Irvine),00108909,04-05-2022,0000180272,6008.8,0,Marine Policy 22-23,201800,Financial Services Insurance
South Lakeland District Council,http://opendatacommunities.org/id/district-council/south-lakeland,31/05/2022,Support Services,Central Services,http://opendatacommunities.org/def/concept/finance/sercop/objective/102,ROYAL MAIL GROUP PLC,,25-05-2022,0000180437,6104.83,0,Response plus service (license,301200,Mail Services� Postage
South Lakeland District Council,http://opendatacommunities.org/id/district-council/south-lakeland,31/05/2022,Delivery Commercial Services,Culture and Related Serv,http://opendatacommunities.org/def/concept/finance/sercop/objective/104,R G PARKINS & PARTNERS LTD,04107150,09-05-2022,0000180381,6162.65,0,Grange Lido - Consultancy work,152200,Consultancy Technical & Feasibility
South Lakeland District Council,http://opendatacommunities.org/id/district-council/south-lakeland,31/05/2022,Support Services,Central Services,http://opendatacommunities.org/def/concept/finance/sercop/objective/102,TIAA Ltd,04546319,16-05-2022,0000180249,6566.6,0,21-22 internal audit service,201100,Financial Services Audit
South Lakeland District Council,http://opendatacommunities.org/id/district-council/south-lakeland,31/05/2022,Business Support Community Services,Cultural Environmental Regulatory & Planning Services,http://opendatacommunities.org/def/concept/finance/sercop/objective/104,RPC BPI RECYCLED PRODUCTS,350729,18-05-2022,0000180560,7183.2,0,Per your quote Q095720,182013,Environment Waste Mgt Waste Collection
South Lakeland District Council,http://opendatacommunities.org/id/district-council/south-lakeland,31/05/2022,ICT Group,Central Services,http://opendatacommunities.org/def/concept/finance/sercop/objective/102,CWSI UK Ltd,08032836,30-05-2022,0000180086,7645.95,0,MI Platinum Perp licenses (one off),271300,Information communication Maintenance
South Lakeland District Council,http://opendatacommunities.org/id/district-council/south-lakeland,31/05/2022,Case Management Account Mgmt,Cultural Environmental Regulatory & Planning Services,http://opendatacommunities.org/def/concept/finance/sercop/objective/104,Trebbi Continuum Ltd,,09-05-2022,0000180349,7740,0,Services in connection with Stage 2 of,150000,Consultancy
South Lakeland District Council,http://opendatacommunities.org/id/district-council/south-lakeland,31/05/2022,Support Services,Culture and Related Serv,http://opendatacommunities.org/def/concept/finance/sercop/objective/104,Bloom Procurement Services Ltd,,23-05-2022,0000180685,8343.75,0,Grange Lido & Promenade Stage 5 & 6,151900,Consultancy Management
South Lakeland District Council,http://opendatacommunities.org/id/district-council/south-lakeland,31/05/2022,Case Management Regulatory,Central Services,http://opendatacommunities.org/def/concept/finance/sercop/objective/102,Exacom Systems Ltd,07356515,11-05-2022,0000180140,9490.51,0,Annual Maintenance - Exacom,152100,Consultancy Strategic Planning
South Lakeland District Council,http://opendatacommunities.org/id/district-council/south-lakeland,31/05/2022,Case Management Regulatory,Cultural Environmental Regulatory & Planning Services,http://opendatacommunities.org/def/concept/finance/sercop/objective/104,UNITED UTILITIES WATER PLC,2366678,30-05-2022,0000180518,9578.57,0,Private Water Analysis,371300,Utilities Water
South Lakeland District Council,http://opendatacommunities.org/id/district-council/south-lakeland,31/05/2022,ICT Group,Central Services,http://opendatacommunities.org/def/concept/finance/sercop/objective/102,Pentest People Limited,,30-05-2022,0000180477,9750,0,IT Health Check - Year 4,279999,ICT Not Elsewhere Classified
South Lakeland District Council,http://opendatacommunities.org/id/district-council/south-lakeland,31/05/2022,Case Management Account Mgmt,Central Services,http://opendatacommunities.org/def/concept/finance/sercop/objective/102,Greenwich Leisure Ltd,,25-05-2022,0000180620,9900,0,Elections,291400,Arts & Leisure Services Sport & Fitness
South Lakeland District Council,http://opendatacommunities.org/id/district-council/south-lakeland,31/05/2022,Support Services,SLDC as Agent,,Arthur J Gallagher Insurance Brokers Lld,00108909,04-05-2022,0000180273,10007.17,0,Brokerage and other insurance policies,201800,Financial Services Insurance
South Lakeland District Council,http://opendatacommunities.org/id/district-council/south-lakeland,31/05/2022,Case Management Account Mgmt,Central Services,http://opendatacommunities.org/def/concept/finance/sercop/objective/102,CAPITA BUSINESS SERVICES LTD,02299747,09-05-2022,0000180220,10148.44,0,DWP LA Data Share,261500,HR Training & Conferences
South Lakeland District Council,http://opendatacommunities.org/id/district-council/south-lakeland,31/05/2022,Support Services,Central Services,http://opendatacommunities.org/def/concept/finance/sercop/objective/102,Print.UK.Com,,18-05-2022,0000180608,10386.32,0,Printing and postage costs (ballot,191600,Facilities Printing
South Lakeland District Council,http://opendatacommunities.org/id/district-council/south-lakeland,31/05/2022,Delivery Commercial Services,Central Services,http://opendatacommunities.org/def/concept/finance/sercop/objective/102,THE TECHNOLOGY FORGE,06834254,09-05-2022,0000180334,11214,0,Maintenance Schedule 1.6.22 - 31.5.23,271600,ICT Software Customised & Bespoke
South Lakeland District Council,http://opendatacommunities.org/id/district-council/south-lakeland,31/05/2022,Case Management Account Mgmt,Central Services,http://opendatacommunities.org/def/concept/finance/sercop/objective/102,Konica Minolta Bus Solutions (UK) Ltd,,23-05-2022,0000180811,11405.98,0,MFD and Print Room Lease Charges,192000,Facilities Reprographics
South Lakeland District Council,http://opendatacommunities.org/id/district-council/south-lakeland,31/05/2022,Case Management Account Mgmt,Non-Service Payments,,Kendal BID Ltd,08986243,16-05-2022,0000180491,11803.62,0,Monies Collected,201700,Financial Services Grants
South Lakeland District Council,http://opendatacommunities.org/id/district-council/south-lakeland,31/05/2022,Case Management Account Mgmt,Cultural Environmental Regulatory & Planning Services,http://opendatacommunities.org/def/concept/finance/sercop/objective/104,CONTINENTAL LANDSCAPES LTD,2108452,30-05-2022,0000180565,11850.92,0,Parks Routine Maintenance,391310,Construction Open Spaces Construction
South Lakeland District Council,http://opendatacommunities.org/id/district-council/south-lakeland,31/05/2022,Delivery Commercial Services,Central Services,http://opendatacommunities.org/def/concept/finance/sercop/objective/102,Citation Limited T/A Southalls,05751804,25-05-2022,0000180877,11996.5,0,Fire Risk Assessments (14 sites) as per,202100,Financial Services Subscriptions
South Lakeland District Council,http://opendatacommunities.org/id/district-council/south-lakeland,31/05/2022,Case Management Account Mgmt,Cultural Environmental Regulatory & Planning Services,http://opendatacommunities.org/def/concept/finance/sercop/objective/104,Trebbi Continuum Ltd,,09-05-2022,0000180348,13000,0,Services in connection with Stage 2 of,150000,Consultancy
South Lakeland District Council,http://opendatacommunities.org/id/district-council/south-lakeland,31/05/2022,ICT Group,Central Services,http://opendatacommunities.org/def/concept/finance/sercop/objective/102,The Networking People (Northwest) LTD,,30-05-2022,0000180798,13900,0,Network support onboarding - 4x days,270000,Information Communications Technology
South Lakeland District Council,http://opendatacommunities.org/id/district-council/south-lakeland,31/05/2022,Policy & Partnerships,Central Services,http://opendatacommunities.org/def/concept/finance/sercop/objective/102,MetaCompliance LTD,00049166,11-05-2022,0000180280,13910.01,0,IT Security & Compliance Awareness,261500,HR Training & Conferences
South Lakeland District Council,http://opendatacommunities.org/id/district-council/south-lakeland,31/05/2022,Support Services,Central Services,http://opendatacommunities.org/def/concept/finance/sercop/objective/102,Print.UK.Com,,18-05-2022,0000180609,14162.22,0,Printing and postage costs (ballot,191600,Facilities Printing
South Lakeland District Council,http://opendatacommunities.org/id/district-council/south-lakeland,31/05/2022,Business Support Community Services,Central Services,http://opendatacommunities.org/def/concept/finance/sercop/objective/102,Volkswagen Group UK Ltd,00514809,23-05-2022,0000180429,18713,0,VW C20 Cargo Commerce Maxi 102 PS 6sp,381000,Vehicle Mgt Commercial
South Lakeland District Council,http://opendatacommunities.org/id/district-council/south-lakeland,31/05/2022,Case Management Account Mgmt,Non-Service Payments,,Kendal BID Ltd,08986243,16-05-2022,0000180484,22011.47,0,Monies Collected,201700,Financial Services Grants
South Lakeland District Council,http://opendatacommunities.org/id/district-council/south-lakeland,31/05/2022,Business Support Community Services,Cultural Environmental Regulatory & Planning Services,http://opendatacommunities.org/def/concept/finance/sercop/objective/104,ALLSTAR BUSINESS SOLUTIONS LTD (NCR),2631112,01-05-2022,0000180396,22882.74,0,Fuel to 30/4,381600,Vehicle Mgt Leasing
South Lakeland District Council,http://opendatacommunities.org/id/district-council/south-lakeland,31/05/2022,ICT Group,Central Services,http://opendatacommunities.org/def/concept/finance/sercop/objective/102,MLL Telecom Ltd,02657917,09-05-2022,0000180309,26681.99,0,South Lakes House MPLS,271700,ICT Telecommunications Fixed
South Lakeland District Council,http://opendatacommunities.org/id/district-council/south-lakeland,31/05/2022,Case Management Account Mgmt,Culture and Related Serv,http://opendatacommunities.org/def/concept/finance/sercop/objective/104,LAMBERT SMITH HAMPTON GROUP,2521225,11-05-2022,0000180148,27680,0,Design & Project Management for Abbot,999999,Unclassifiable
South Lakeland District Council,http://opendatacommunities.org/id/district-council/south-lakeland,31/05/2022,Support Services,Central Services,http://opendatacommunities.org/def/concept/finance/sercop/objective/102,Print.UK.Com,,30-05-2022,0000180875,36459.95,0,Printing and postage costs (ballot,191600,Facilities Printing
South Lakeland District Council,http://opendatacommunities.org/id/district-council/south-lakeland,31/05/2022,Delivery Commercial Services,Culture and Related Serv,http://opendatacommunities.org/def/concept/finance/sercop/objective/104,CUMBRIA COUNTY COUNCIL,,23-05-2022,0000180613,50000,0,Contribution to Windermere Promenade,908000,Public Bodies Council support services
South Lakeland District Council,http://opendatacommunities.org/id/district-council/south-lakeland,31/05/2022,Case Management Account Mgmt,Cultural Environmental Regulatory & Planning Services,http://opendatacommunities.org/def/concept/finance/sercop/objective/104,Greenwich Leisure Ltd,,16-05-2022,0000179506,55159.5,0,Leisure Services 2021/22,291400,Arts & Leisure Services Sport & Fitness
South Lakeland District Council,http://opendatacommunities.org/id/district-council/south-lakeland,31/05/2022,Case Management People,SLDC as Agent,,CIVICA UK LTD,01628868,30-05-2022,0000180592,55907.08,0,Civica Run Contract,271600,ICT Software Customised & Bespoke
South Lakeland District Council,http://opendatacommunities.org/id/district-council/south-lakeland,31/05/2022,Case Management Account Mgmt,Cultural Environmental Regulatory & Planning Services,http://opendatacommunities.org/def/concept/finance/sercop/objective/104,CONTINENTAL LANDSCAPES LTD,2108452,30-05-2022,0000180565,56457.3,0,Parks Routine Maintenance,391310,Construction Open Spaces Construction
South Lakeland District Council,http://opendatacommunities.org/id/district-council/south-lakeland,31/05/2022,Delivery Commercial Services,Central Services,http://opendatacommunities.org/def/concept/finance/sercop/objective/102,Caddick Construction (NW) Limited,,16-05-2022,0000180564,78577.65,0,SLH & KTH Refurbishment,391100,Construction Buildings
South Lakeland District Council,http://opendatacommunities.org/id/district-council/south-lakeland,31/05/2022,Support Services,Environment Regulatory,,SSCL (Environment Agency),,16-05-2022,0000180525,530211.76,0,North Kendal Industrial Area Flood Risk,180000,Environmental Services
